[Event "Titled Tuesday Blitz February 22 Early 2022"]
[White "Agibileg, Uurtsaikh"]
[Black "Thomas, Anysia"]
[WhiteFideId "4901606"]
[BlackFideId "670472"]
[WhiteElo "2205"]
[BlackElo "2002"]
[Result "1/2-1/2"]
[Round "01"]
[TimeControl "180+1"]
[Date "2022.02.22"]
[WhiteClock "0:00:14"]
[BlackClock "0:00:19"]

1. d4 {[%clk 0:02:58]}  Nf6 {[%clk 0:02:56]} 2. c4 {[%clk 0:02:58]}  g6 {[%clk 0:02:56]} 3. Nc3 {[%clk 0:02:59]}  d5 {[%clk 0:02:55]} 4. cxd5 {[%clk 0:02:59]}  Nxd5 {[%clk 0:02:56]} 5. e4 {[%clk 0:03:00]}  Nxc3 {[%clk 0:02:56]} 6. bxc3 {[%clk 0:03:01]}  Bg7 {[%clk 0:02:57]} 7. Nf3 {[%clk 0:03:01]}  c5 {[%clk 0:02:56]} 8. Bb5+ {[%clk 0:03:02]}  Nd7 {[%clk 0:02:53]} 9. O-O {[%clk 0:03:01]}  O-O {[%clk 0:02:53]} 10. Be3 {[%clk 0:02:57]}  Nf6 {[%clk 0:02:51]} 11. Bd3 {[%clk 0:02:55]}  a6 {[%clk 0:02:48]} 12. h3 {[%clk 0:02:52]}  b5 {[%clk 0:02:47]} 13. a4 {[%clk 0:02:52]}  Bb7 {[%clk 0:02:38]} 14. axb5 {[%clk 0:02:44]}  axb5 {[%clk 0:02:31]} 15. e5 {[%clk 0:02:13]}  Nd5 {[%clk 0:02:29]} 16. dxc5 {[%clk 0:02:03]}  Nxc3 {[%clk 0:02:19]} 17. Qc2 {[%clk 0:02:02]}  Bxf3 {[%clk 0:02:10]} 18. gxf3 {[%clk 0:01:26]}  Bxe5 {[%clk 0:02:07]} 19. Kg2 {[%clk 0:01:09]}  Rxa1 {[%clk 0:01:48]} 20. Rxa1 {[%clk 0:01:10]}  Nd5 {[%clk 0:01:49]} 21. Rd1 {[%clk 0:01:08]}  e6 {[%clk 0:01:23]} 22. Bh6 {[%clk 0:01:05]}  Re8 {[%clk 0:01:07]} 23. Bxb5 {[%clk 0:00:58]}  Qh4 {[%clk 0:01:00]} 24. Bxe8 {[%clk 0:00:43]}  Qxh6 {[%clk 0:01:00]} 25. Rxd5 {[%clk 0:00:29]}  exd5 {[%clk 0:01:00]} 26. c6 {[%clk 0:00:22]}  Qf4 {[%clk 0:00:57]} 27. Bd7 {[%clk 0:00:19]}  Qh2+ {[%clk 0:00:54]} 28. Kf1 {[%clk 0:00:19]}  Qf4 {[%clk 0:00:49]} 29. Qd3 {[%clk 0:00:19]}  Qc1+ {[%clk 0:00:32]} 30. Kg2 {[%clk 0:00:19]}  Qg5+ {[%clk 0:00:32]} 31. Kf1 {[%clk 0:00:19]}  Qc1+ {[%clk 0:00:31]} 32. Ke2 {[%clk 0:00:16]}  Qb2+ {[%clk 0:00:20]} 33. Kf1 {[%clk 0:00:14]}  Qc1+ {[%clk 0:00:19]} 1/2-1/2


[Site "https://www.chess.com"]

[Event "Titled Tuesday Blitz February 22 Early 2022"]
[White "Al Hosani, Omran"]
[Black "Quirke, Jeffrey"]
[WhiteFideId "9308733"]
[BlackFideId "2013029"]
[WhiteElo "2246"]
[BlackElo "2194"]
[Result "0-1"]
[Round "01"]
[TimeControl "180+1"]
[Date "2022.02.22"]
[WhiteClock "0:00:14"]
[BlackClock "0:00:55"]

1. Nf3 {[%clk 0:02:59]}  Nf6 {[%clk 0:02:57]} 2. g3 {[%clk 0:02:44]}  d5 {[%clk 0:02:55]} 3. Bg2 {[%clk 0:02:38]}  e6 {[%clk 0:02:55]} 4. d3 {[%clk 0:02:39]}  c5 {[%clk 0:02:55]} 5. Nbd2 {[%clk 0:02:39]}  Nc6 {[%clk 0:02:55]} 6. e4 {[%clk 0:02:40]}  Be7 {[%clk 0:02:55]} 7. O-O {[%clk 0:02:40]}  Qc7 {[%clk 0:02:55]} 8. Re1 {[%clk 0:02:40]}  O-O {[%clk 0:02:55]} 9. e5 {[%clk 0:02:40]}  Nd7 {[%clk 0:02:54]} 10. Nf1 {[%clk 0:02:40]}  Ndxe5 {[%clk 0:02:49]} 11. Nxe5 {[%clk 0:02:39]}  Nxe5 {[%clk 0:02:48]} 12. Bf4 {[%clk 0:02:39]}  Bd6 {[%clk 0:02:49]} 13. c4 {[%clk 0:02:39]}  d4 {[%clk 0:02:40]} 14. b4 {[%clk 0:02:29]}  Ng6 {[%clk 0:02:31]} 15. Bxd6 {[%clk 0:02:26]}  Qxd6 {[%clk 0:02:30]} 16. bxc5 {[%clk 0:02:26]}  Qxc5 {[%clk 0:02:31]} 17. Rb1 {[%clk 0:02:27]}  Rb8 {[%clk 0:02:20]} 18. Rb5 {[%clk 0:02:20]}  Qc7 {[%clk 0:02:18]} 19. h4 {[%clk 0:02:07]}  h6 {[%clk 0:02:10]} 20. Be4 {[%clk 0:02:05]}  Ne7 {[%clk 0:02:08]} 21. Nh2 {[%clk 0:01:55]}  b6 {[%clk 0:02:07]} 22. Qh5 {[%clk 0:01:37]}  Bb7 {[%clk 0:01:58]} 23. Ng4 {[%clk 0:01:22]}  Bxe4 {[%clk 0:01:57]} 24. dxe4 {[%clk 0:01:20]}  Kh7 {[%clk 0:01:22]} 25. Rg5 {[%clk 0:00:56]}  Ng8 {[%clk 0:01:07]} 26. Re5 {[%clk 0:00:21]}  g6 {[%clk 0:00:58]} 27. Nf6+ {[%clk 0:00:15]}  Nxf6 {[%clk 0:00:57]} 28. Qf3 {[%clk 0:00:14]}  Qxe5 {[%clk 0:00:55]} 0-1


[Site "https://www.chess.com"]

[Event "Titled Tuesday Blitz February 22 Early 2022"]
[White "Ambartsumova, Karina"]
[Black "Fajdetic, Hrvoje"]
[WhiteFideId "4166299"]
[BlackFideId "14501945"]
[WhiteElo "2262"]
[BlackElo "2140"]
[Result "0-1"]
[Round "01"]
[TimeControl "180+1"]
[Date "2022.02.22"]
[WhiteClock "0:00:04"]
[BlackClock "0:00:47"]

1. c4 {[%clk 0:03:00]}  f5 {[%clk 0:02:59]} 2. Nf3 {[%clk 0:03:00]}  Nf6 {[%clk 0:02:59]} 3. g3 {[%clk 0:03:00]}  d6 {[%clk 0:02:59]} 4. d4 {[%clk 0:02:59]}  e6 {[%clk 0:03:00]} 5. Bg2 {[%clk 0:02:58]}  Be7 {[%clk 0:03:00]} 6. O-O {[%clk 0:02:57]}  O-O {[%clk 0:03:01]} 7. Nc3 {[%clk 0:02:57]}  Ne4 {[%clk 0:03:01]} 8. Nd2 {[%clk 0:02:50]}  Nxc3 {[%clk 0:03:00]} 9. bxc3 {[%clk 0:02:50]}  Bf6 {[%clk 0:03:00]} 10. e4 {[%clk 0:02:47]}  e5 {[%clk 0:02:57]} 11. Nb3 {[%clk 0:02:11]}  Nc6 {[%clk 0:02:51]} 12. exf5 {[%clk 0:01:52]}  Bxf5 {[%clk 0:02:47]} 13. Be3 {[%clk 0:01:52]}  Qd7 {[%clk 0:02:39]} 14. c5 {[%clk 0:01:47]}  Bh3 {[%clk 0:02:34]} 15. cxd6 {[%clk 0:01:28]}  Bxg2 {[%clk 0:02:31]} 16. Kxg2 {[%clk 0:01:29]}  cxd6 {[%clk 0:02:31]} 17. Qh5 {[%clk 0:01:27]}  g6 {[%clk 0:02:26]} 18. Qf3 {[%clk 0:01:22]}  Rae8 {[%clk 0:02:12]} 19. Rad1 {[%clk 0:01:19]}  e4 {[%clk 0:02:11]} 20. Qe2 {[%clk 0:01:17]}  d5 {[%clk 0:02:11]} 21. c4 {[%clk 0:01:17]}  Ne7 {[%clk 0:02:06]} 22. Nc5 {[%clk 0:01:16]}  Qc8 {[%clk 0:02:03]} 23. cxd5 {[%clk 0:01:11]}  Nxd5 {[%clk 0:02:04]} 24. Qc4 {[%clk 0:01:11]}  Qc6 {[%clk 0:01:53]} 25. Qb3 {[%clk 0:01:04]}  b6 {[%clk 0:01:50]} 26. Na6 {[%clk 0:01:00]}  Kg7 {[%clk 0:01:45]} 27. Rc1 {[%clk 0:01:00]}  Qb7 {[%clk 0:01:36]} 28. Nb4 {[%clk 0:00:52]}  Nxe3+ {[%clk 0:01:20]} 29. Qxe3 {[%clk 0:00:27]}  h6 {[%clk 0:01:03]} 30. Nc6 {[%clk 0:00:25]}  Bg5 {[%clk 0:01:02]} 31. Qc3 {[%clk 0:00:21]}  Bxc1 {[%clk 0:01:02]} 32. Rxc1 {[%clk 0:00:22]}  e3 {[%clk 0:00:59]} 33. fxe3 {[%clk 0:00:20]}  Rf6 {[%clk 0:00:59]} 34. d5 {[%clk 0:00:20]}  Rf8 {[%clk 0:00:56]} 35. Qd4 {[%clk 0:00:20]}  Kh7 {[%clk 0:00:54]} 36. Rc2 {[%clk 0:00:18]}  Qa6 {[%clk 0:00:52]} 37. Qc4 {[%clk 0:00:04]}  Rf2+ {[%clk 0:00:49]} 38. Kh3 {[%clk 0:00:04]}  Qc8+ {[%clk 0:00:47]} 0-1


[Site "https://www.chess.com"]

[Event "Titled Tuesday Blitz February 22 Early 2022"]
[White "Aradhya, Garg"]
[Black "Namitbir Singh Walia"]
[WhiteFideId "25006746"]
[BlackFideId "35071068"]
[WhiteElo "2169"]
[BlackElo "1479"]
[Result "1-0"]
[Round "01"]
[TimeControl "180+1"]
[Date "2022.02.22"]
[WhiteClock "0:00:40"]
[BlackClock "0:00:05"]

1. d4 {[%clk 0:02:58]}  d5 {[%clk 0:02:58]} 2. Nf3 {[%clk 0:02:56]}  Nf6 {[%clk 0:02:58]} 3. c3 {[%clk 0:02:56]}  c5 {[%clk 0:02:52]} 4. e3 {[%clk 0:02:51]}  Nc6 {[%clk 0:02:52]} 5. dxc5 {[%clk 0:02:50]}  a5 {[%clk 0:02:46]} 6. Bb5 {[%clk 0:02:49]}  e6 {[%clk 0:02:41]} 7. b4 {[%clk 0:02:49]}  Bd7 {[%clk 0:02:35]} 8. O-O {[%clk 0:02:47]}  axb4 {[%clk 0:02:27]} 9. Bxc6 {[%clk 0:02:47]}  Bxc6 {[%clk 0:02:25]} 10. cxb4 {[%clk 0:02:47]}  b6 {[%clk 0:02:26]} 11. Nc3 {[%clk 0:02:38]}  bxc5 {[%clk 0:02:25]} 12. b5 {[%clk 0:02:38]}  Bb7 {[%clk 0:02:20]} 13. a4 {[%clk 0:02:38]}  Bd6 {[%clk 0:02:19]} 14. Ba3 {[%clk 0:02:37]}  O-O {[%clk 0:02:19]} 15. Ne2 {[%clk 0:02:19]}  Ne4 {[%clk 0:02:16]} 16. Bb2 {[%clk 0:02:17]}  Be7 {[%clk 0:01:52]} 17. Qc2 {[%clk 0:02:09]}  Bf6 {[%clk 0:01:51]} 18. Rfd1 {[%clk 0:02:06]}  Qb6 {[%clk 0:01:35]} 19. Ne5 {[%clk 0:01:54]}  Rfd8 {[%clk 0:01:25]} 20. Ng3 {[%clk 0:01:40]}  Nxg3 {[%clk 0:01:17]} 21. hxg3 {[%clk 0:01:41]}  Qc7 {[%clk 0:01:15]} 22. Nd3 {[%clk 0:01:36]}  Bxb2 {[%clk 0:01:12]} 23. Qxb2 {[%clk 0:01:37]}  Rdc8 {[%clk 0:00:51]} 24. b6 {[%clk 0:01:11]}  Qc6 {[%clk 0:00:47]} 25. a5 {[%clk 0:01:09]}  d4 {[%clk 0:00:38]} 26. f3 {[%clk 0:01:07]}  Qd6 {[%clk 0:00:21]} 27. exd4 {[%clk 0:00:57]}  Qxg3 {[%clk 0:00:17]} 28. Nxc5 {[%clk 0:00:53]}  Bxf3 {[%clk 0:00:16]} 29. Rd3 {[%clk 0:00:53]}  Rxa5 {[%clk 0:00:06]} 30. Rxf3 {[%clk 0:00:43]}  Rxa1+ {[%clk 0:00:05]} 31. Qxa1 {[%clk 0:00:44]}  Qh4 {[%clk 0:00:05]} 32. b7 {[%clk 0:00:40]}  Rb8 {[%clk 0:00:05]} 33. Nd7 {[%clk 0:00:40]} 1-0


[Site "https://www.chess.com"]

[Event "Titled Tuesday Blitz February 22 Early 2022"]
[White "Ardila, Oscar Humberto"]
[Black "De Verdier, Michael"]
[WhiteFideId "4404742"]
[BlackFideId "1710516"]
[WhiteElo "1898"]
[BlackElo "2301"]
[Result "1-0"]
[Round "01"]
[TimeControl "180+1"]
[Date "2022.02.22"]
[WhiteClock "0:00:34"]
[BlackClock "0:00:05"]

1. d4 {[%clk 0:02:57]}  Nf6 {[%clk 0:02:59]} 2. c4 {[%clk 0:02:58]}  d6 {[%clk 0:02:58]} 3. Nc3 {[%clk 0:02:58]}  e5 {[%clk 0:02:58]} 4. d5 {[%clk 0:02:58]}  Bf5 {[%clk 0:02:57]} 5. Bg5 {[%clk 0:02:56]}  Be7 {[%clk 0:02:55]} 6. e3 {[%clk 0:02:53]}  Nbd7 {[%clk 0:02:50]} 7. Nge2 {[%clk 0:02:51]}  h6 {[%clk 0:02:49]} 8. Bh4 {[%clk 0:02:51]}  Nxd5 {[%clk 0:02:43]} 9. Qxd5 {[%clk 0:02:34]}  Bxh4 {[%clk 0:02:40]} 10. Qxb7 {[%clk 0:02:34]}  O-O {[%clk 0:02:30]} 11. Qf3 {[%clk 0:02:32]}  Be6 {[%clk 0:02:24]} 12. b3 {[%clk 0:02:30]}  Nc5 {[%clk 0:02:16]} 13. Rd1 {[%clk 0:02:28]}  f5 {[%clk 0:01:58]} 14. Qc6 {[%clk 0:02:09]}  Rb8 {[%clk 0:01:42]} 15. Nd5 {[%clk 0:02:05]}  Rf7 {[%clk 0:01:43]} 16. Nec3 {[%clk 0:02:02]}  f4 {[%clk 0:01:18]} 17. g3 {[%clk 0:01:48]}  fxe3 {[%clk 0:01:12]} 18. Nxe3 {[%clk 0:01:40]}  Bg5 {[%clk 0:01:02]} 19. Bg2 {[%clk 0:01:21]}  Qf8 {[%clk 0:00:48]} 20. O-O {[%clk 0:01:17]}  Rxf2 {[%clk 0:00:38]} 21. Bd5 {[%clk 0:01:13]}  Bxe3 {[%clk 0:00:32]} 22. Rxf2 {[%clk 0:00:56]}  Qxf2+ {[%clk 0:00:27]} 23. Kh1 {[%clk 0:00:57]}  Bxd5+ {[%clk 0:00:20]} 24. Qxd5+ {[%clk 0:00:57]}  Qf7 {[%clk 0:00:18]} 25. b4 {[%clk 0:00:54]}  Rxb4 {[%clk 0:00:11]} 26. Qa8+ {[%clk 0:00:53]}  Qf8 {[%clk 0:00:10]} 27. Qd5+ {[%clk 0:00:52]}  Kh8 {[%clk 0:00:11]} 28. Qg2 {[%clk 0:00:49]}  e4 {[%clk 0:00:11]} 29. Nd5 {[%clk 0:00:49]}  Bg5 {[%clk 0:00:07]} 30. Nxb4 {[%clk 0:00:48]}  Qf3 {[%clk 0:00:07]} 31. Rf1 {[%clk 0:00:48]}  Qxg2+ {[%clk 0:00:07]} 32. Kxg2 {[%clk 0:00:48]}  Nd3 {[%clk 0:00:06]} 33. Rf8+ {[%clk 0:00:48]}  Kh7 {[%clk 0:00:06]} 34. Nxd3 {[%clk 0:00:43]}  exd3 {[%clk 0:00:07]} 35. Kf3 {[%clk 0:00:42]}  d2 {[%clk 0:00:07]} 36. Ke2 {[%clk 0:00:42]}  Kg6 {[%clk 0:00:04]} 37. Ra8 {[%clk 0:00:41]}  Be3 {[%clk 0:00:05]} 38. Rc8 {[%clk 0:00:41]}  Kf5 {[%clk 0:00:04]} 39. Rxc7 {[%clk 0:00:41]}  g5 {[%clk 0:00:05]} 40. Rd7 {[%clk 0:00:38]}  Ke6 {[%clk 0:00:04]} 41. Rh7 {[%clk 0:00:37]}  g4 {[%clk 0:00:05]} 42. a4 {[%clk 0:00:34]}  Ke5 {[%clk 0:00:05]} 43. Re7+ {[%clk 0:00:34]} 1-0


[Site "https://www.chess.com"]

[Event "Titled Tuesday Blitz February 22 Early 2022"]
[White "Atakishiyev, Elmar"]
[Black "Melaugh, Shane"]
[WhiteFideId "13410547"]
[BlackFideId "2509580"]
[WhiteElo "2087"]
[BlackElo "2000"]
[Result "1-0"]
[Round "01"]
[TimeControl "180+1"]
[Date "2022.02.22"]
[WhiteClock "0:01:03"]
[BlackClock "0:00:35"]

1. Nf3 {[%clk 0:03:00]}  Nc6 {[%clk 0:02:58]} 2. g3 {[%clk 0:02:59]}  e5 {[%clk 0:02:58]} 3. Bg2 {[%clk 0:03:00]}  f5 {[%clk 0:02:59]} 4. O-O {[%clk 0:02:59]}  Nf6 {[%clk 0:02:59]} 5. d4 {[%clk 0:02:58]}  d6 {[%clk 0:02:55]} 6. c4 {[%clk 0:02:56]}  Be7 {[%clk 0:02:54]} 7. Nc3 {[%clk 0:02:56]}  O-O {[%clk 0:02:54]} 8. Bg5 {[%clk 0:02:56]}  Qe8 {[%clk 0:02:54]} 9. Bxf6 {[%clk 0:02:54]}  Bxf6 {[%clk 0:02:55]} 10. Nd5 {[%clk 0:02:54]}  Bd8 {[%clk 0:02:56]} 11. dxe5 {[%clk 0:02:53]}  dxe5 {[%clk 0:02:55]} 12. Qb3 {[%clk 0:02:53]}  e4 {[%clk 0:02:23]} 13. Nd2 {[%clk 0:02:48]}  Nd4 {[%clk 0:02:23]} 14. Qd1 {[%clk 0:02:44]}  c6 {[%clk 0:02:23]} 15. Nc3 {[%clk 0:02:38]}  Ne6 {[%clk 0:02:16]} 16. Nb3 {[%clk 0:02:35]}  a5 {[%clk 0:01:58]} 17. Na4 {[%clk 0:02:23]}  Qh5 {[%clk 0:01:34]} 18. e3 {[%clk 0:02:12]}  Qf7 {[%clk 0:01:27]} 19. Qc2 {[%clk 0:02:04]}  b5 {[%clk 0:01:22]} 20. cxb5 {[%clk 0:01:55]}  cxb5 {[%clk 0:01:23]} 21. Nc3 {[%clk 0:01:52]}  Ba6 {[%clk 0:01:13]} 22. Rfd1 {[%clk 0:01:50]}  Rc8 {[%clk 0:01:13]} 23. Qd2 {[%clk 0:01:47]}  b4 {[%clk 0:00:55]} 24. Nd5 {[%clk 0:01:45]}  Bd3 {[%clk 0:00:54]} 25. Rac1 {[%clk 0:01:41]}  Bg5 {[%clk 0:00:49]} 26. Nxa5 {[%clk 0:01:35]}  Nc5 {[%clk 0:00:49]} 27. Nxb4 {[%clk 0:01:20]}  Qa7 {[%clk 0:00:43]} 28. Nac6 {[%clk 0:01:14]}  Qb6 {[%clk 0:00:43]} 29. Qc3 {[%clk 0:01:03]}  Na4 {[%clk 0:00:35]} 30. Qb3+ {[%clk 0:01:03]} 1-0


[Site "https://www.chess.com"]

[Event "Titled Tuesday Blitz February 22 Early 2022"]
[White "Baker, Chris W"]
[Black "Barp, Alberto"]
[WhiteFideId "401676"]
[BlackFideId "872555"]
[WhiteElo "2206"]
[BlackElo "2229"]
[Result "0-1"]
[Round "01"]
[TimeControl "180+1"]
[Date "2022.02.22"]
[WhiteClock "0:01:25"]
[BlackClock "0:01:25"]

1. c4 {[%clk 0:03:00]}  c5 {[%clk 0:02:42]} 2. Nf3 {[%clk 0:02:59]}  Nc6 {[%clk 0:02:42]} 3. g3 {[%clk 0:02:59]}  e5 {[%clk 0:02:38]} 4. Nc3 {[%clk 0:02:57]}  g6 {[%clk 0:02:37]} 5. Bg2 {[%clk 0:02:56]}  Bg7 {[%clk 0:02:38]} 6. O-O {[%clk 0:02:55]}  Nge7 {[%clk 0:02:37]} 7. d3 {[%clk 0:02:53]}  h6 {[%clk 0:02:35]} 8. a3 {[%clk 0:02:51]}  a5 {[%clk 0:02:30]} 9. Bd2 {[%clk 0:02:40]}  O-O {[%clk 0:02:30]} 10. Nd5 {[%clk 0:02:35]}  d6 {[%clk 0:02:26]} 11. Rb1 {[%clk 0:02:30]}  Nxd5 {[%clk 0:02:22]} 12. cxd5 {[%clk 0:02:29]}  Ne7 {[%clk 0:02:23]} 13. e4 {[%clk 0:02:08]}  Bd7 {[%clk 0:02:15]} 14. b4 {[%clk 0:02:07]}  cxb4 {[%clk 0:02:12]} 15. axb4 {[%clk 0:02:07]}  Bb5 {[%clk 0:02:12]} 16. Qc2 {[%clk 0:01:51]}  a4 {[%clk 0:02:06]} 17. Rfc1 {[%clk 0:01:50]}  Rc8 {[%clk 0:02:00]} 18. Qb2 {[%clk 0:01:45]}  Bxd3 {[%clk 0:01:56]} 19. Rxc8 {[%clk 0:01:44]}  Nxc8 {[%clk 0:01:51]} 20. Re1 {[%clk 0:01:42]}  b5 {[%clk 0:01:46]} 21. Bc3 {[%clk 0:01:32]}  Nb6 {[%clk 0:01:44]} 22. Nd2 {[%clk 0:01:31]}  Qc7 {[%clk 0:01:29]} 23. f4 {[%clk 0:01:27]}  Rc8 {[%clk 0:01:27]} 24. Rc1 {[%clk 0:01:25]}  exf4 {[%clk 0:01:25]} 0-1


[Site "https://www.chess.com"]

[Event "Titled Tuesday Blitz February 22 Early 2022"]
[White "Barrientos, Sergio E"]
[Black "Sarkar, Justin"]
[WhiteFideId "4401824"]
[BlackFideId "2010011"]
[WhiteElo "2441"]
[BlackElo "2038"]
[Result "1-0"]
[Round "01"]
[TimeControl "180+1"]
[Date "2022.02.22"]
[WhiteClock "0:00:35"]
[BlackClock "0:00:01"]

1. d4 {[%clk 0:02:59]}  Nf6 {[%clk 0:02:58]} 2. c4 {[%clk 0:02:58]}  e6 {[%clk 0:02:57]} 3. Nf3 {[%clk 0:02:58]}  d5 {[%clk 0:02:55]} 4. Nc3 {[%clk 0:02:57]}  Be7 {[%clk 0:02:51]} 5. Bf4 {[%clk 0:02:56]}  O-O {[%clk 0:02:46]} 6. e3 {[%clk 0:02:55]}  b6 {[%clk 0:02:40]} 7. cxd5 {[%clk 0:02:55]}  Nxd5 {[%clk 0:02:36]} 8. Bg3 {[%clk 0:02:53]}  Bb7 {[%clk 0:02:33]} 9. Bd3 {[%clk 0:02:53]}  Nd7 {[%clk 0:02:30]} 10. O-O {[%clk 0:02:51]}  c5 {[%clk 0:02:27]} 11. Rc1 {[%clk 0:02:49]}  cxd4 {[%clk 0:02:23]} 12. Nxd4 {[%clk 0:02:49]}  Nxc3 {[%clk 0:02:20]} 13. Rxc3 {[%clk 0:02:50]}  Nc5 {[%clk 0:02:16]} 14. Bc2 {[%clk 0:02:46]}  Ne4 {[%clk 0:02:10]} 15. Bc7 {[%clk 0:01:50]}  Qd5 {[%clk 0:01:35]} 16. Bxe4 {[%clk 0:01:27]}  Qxe4 {[%clk 0:01:36]} 17. f3 {[%clk 0:01:26]}  Qg6 {[%clk 0:01:33]} 18. Bg3 {[%clk 0:01:22]}  Rac8 {[%clk 0:01:27]} 19. Qa4 {[%clk 0:01:20]}  Rxc3 {[%clk 0:01:15]} 20. bxc3 {[%clk 0:01:21]}  Qd3 {[%clk 0:00:54]} 21. Qxa7 {[%clk 0:01:11]}  Ba6 {[%clk 0:00:47]} 22. Re1 {[%clk 0:01:09]}  Bc5 {[%clk 0:00:43]} 23. h4 {[%clk 0:01:06]}  Bc4 {[%clk 0:00:38]} 24. Kh2 {[%clk 0:01:03]}  Qxc3 {[%clk 0:00:33]} 25. Nc6 {[%clk 0:00:55]}  Bxe3 {[%clk 0:00:23]} 26. Qc7 {[%clk 0:00:52]}  Bd2 {[%clk 0:00:11]} 27. Ne7+ {[%clk 0:00:49]}  Kh8 {[%clk 0:00:10]} 28. Re4 {[%clk 0:00:49]}  Bd5 {[%clk 0:00:06]} 29. Nxd5 {[%clk 0:00:45]}  exd5 {[%clk 0:00:06]} 30. Qxf7 {[%clk 0:00:40]}  Qf6 {[%clk 0:00:02]} 31. Qxd5 {[%clk 0:00:38]}  Ba5 {[%clk 0:00:01]} 32. Rf4 {[%clk 0:00:35]} 1-0


[Site "https://www.chess.com"]

[Event "Titled Tuesday Blitz February 22 Early 2022"]
[White "Begunov, Konstantin"]
[Black "Blohberger, Felix"]
[WhiteFideId "4118510"]
[BlackFideId "1632051"]
[WhiteElo "2262"]
[BlackElo "2474"]
[Result "1-0"]
[Round "01"]
[TimeControl "180+1"]
[Date "2022.02.22"]
[WhiteClock "0:00:13"]
[BlackClock "0:00:01"]

1. d4 {[%clk 0:02:59]}  Nf6 {[%clk 0:02:59]} 2. c4 {[%clk 0:02:59]}  c6 {[%clk 0:02:59]} 3. Nc3 {[%clk 0:02:50]}  d5 {[%clk 0:02:59]} 4. cxd5 {[%clk 0:02:50]}  cxd5 {[%clk 0:02:59]} 5. Bf4 {[%clk 0:02:50]}  Nc6 {[%clk 0:02:59]} 6. e3 {[%clk 0:02:48]}  a6 {[%clk 0:02:58]} 7. Nf3 {[%clk 0:02:47]}  Bg4 {[%clk 0:02:56]} 8. h3 {[%clk 0:02:47]}  Bxf3 {[%clk 0:02:55]} 9. Qxf3 {[%clk 0:02:47]}  e6 {[%clk 0:02:56]} 10. Bd3 {[%clk 0:02:48]}  Bd6 {[%clk 0:02:56]} 11. Bg5 {[%clk 0:02:48]}  h6 {[%clk 0:02:52]} 12. Bh4 {[%clk 0:02:47]}  O-O {[%clk 0:02:47]} 13. O-O {[%clk 0:02:46]}  Rc8 {[%clk 0:02:46]} 14. Rfc1 {[%clk 0:02:43]}  g5 {[%clk 0:02:45]} 15. Bg3 {[%clk 0:02:43]}  Kg7 {[%clk 0:02:45]} 16. Bxd6 {[%clk 0:02:41]}  Qxd6 {[%clk 0:02:46]} 17. Na4 {[%clk 0:02:36]}  e5 {[%clk 0:02:41]} 18. dxe5 {[%clk 0:02:30]}  Nxe5 {[%clk 0:02:38]} 19. Qf5 {[%clk 0:02:28]}  Rxc1+ {[%clk 0:02:06]} 20. Rxc1 {[%clk 0:02:29]}  d4 {[%clk 0:02:06]} 21. exd4 {[%clk 0:01:58]}  Qxd4 {[%clk 0:02:07]} 22. Bf1 {[%clk 0:01:55]}  Ng6 {[%clk 0:01:27]} 23. Nc3 {[%clk 0:01:46]}  Re8 {[%clk 0:01:26]} 24. Rd1 {[%clk 0:01:43]}  Qb4 {[%clk 0:01:20]} 25. Qc2 {[%clk 0:01:36]}  h5 {[%clk 0:01:15]} 26. a3 {[%clk 0:01:33]}  Qc5 {[%clk 0:01:13]} 27. Qd3 {[%clk 0:01:25]}  Nf4 {[%clk 0:01:03]} 28. Qf3 {[%clk 0:01:23]}  b5 {[%clk 0:00:53]} 29. g3 {[%clk 0:01:23]}  Ng6 {[%clk 0:00:53]} 30. Nd5 {[%clk 0:01:02]}  Ne4 {[%clk 0:00:35]} 31. Ne3 {[%clk 0:00:55]}  Re5 {[%clk 0:00:23]} 32. Rd7 {[%clk 0:00:45]}  Nf6 {[%clk 0:00:20]} 33. Rd8 {[%clk 0:00:35]}  h4 {[%clk 0:00:19]} 34. Bd3 {[%clk 0:00:32]}  hxg3 {[%clk 0:00:14]} 35. Nf5+ {[%clk 0:00:31]}  Kh7 {[%clk 0:00:15]} 36. Nxg3 {[%clk 0:00:28]}  Qc1+ {[%clk 0:00:07]} 37. Kh2 {[%clk 0:00:25]}  Qf4 {[%clk 0:00:07]} 38. Qxf4 {[%clk 0:00:20]}  gxf4 {[%clk 0:00:08]} 39. Nf5 {[%clk 0:00:17]}  Rc5 {[%clk 0:00:02]} 40. Nh4 {[%clk 0:00:18]}  Kg7 {[%clk 0:00:02]} 41. Nxg6 {[%clk 0:00:18]}  fxg6 {[%clk 0:00:02]} 42. Ra8 {[%clk 0:00:17]}  Rc6 {[%clk 0:00:02]} 43. Kg2 {[%clk 0:00:17]}  g5 {[%clk 0:00:03]} 44. Kf3 {[%clk 0:00:17]}  Rd6 {[%clk 0:00:03]} 45. Bc2 {[%clk 0:00:16]}  Nd7 {[%clk 0:00:03]} 46. Ra7 {[%clk 0:00:15]}  Kf6 {[%clk 0:00:03]} 47. b4 {[%clk 0:00:14]}  Rd4 {[%clk 0:00:03]} 48. Be4 {[%clk 0:00:13]}  Ne5+ {[%clk 0:00:03]} 49. Kg2 {[%clk 0:00:11]}  Rxe4 {[%clk 0:00:04]} 50. Rxa6+ {[%clk 0:00:11]}  Kf5 {[%clk 0:00:04]} 51. Rb6 {[%clk 0:00:12]}  Re2 {[%clk 0:00:01]} 52. Rxb5 {[%clk 0:00:13]} 1-0


[Site "https://www.chess.com"]